[Event "Titled Tuesday Blitz August 15 Early 2023"]
[White "Karavade, Eesha"]
[Black "Martinez, Shawn"]
[WhiteFideId "5012600"]
[BlackFideId "2039770"]
[WhiteElo "2433"]
[BlackElo "2342"]
[Result "1-0"]
[Round "8"]
[TimeControl "180+1"]
[Date "2023.08.15"]
[WhiteClock "0:00:35"]
[BlackClock "0:00:00"]
[Board "125"]

1. d4 {[%clk 0:03:00]}  g6 {[%clk 0:02:58]} 2. c4 {[%clk 0:03:00]}  Bg7 {[%clk 0:02:59]} 3. Nc3 {[%clk 0:02:59]}  a6 {[%clk 0:02:57]} 4. e4 {[%clk 0:02:57]}  b6 {[%clk 0:02:57]} 5. Nf3 {[%clk 0:02:55]}  Bb7 {[%clk 0:02:58]} 6. Bd3 {[%clk 0:02:55]}  h6 {[%clk 0:02:58]} 7. O-O {[%clk 0:02:53]}  e6 {[%clk 0:02:59]} 8. d5 {[%clk 0:02:52]}  Ne7 {[%clk 0:02:52]} 9. Be3 {[%clk 0:02:48]}  d6 {[%clk 0:02:44]} 10. Qd2 {[%clk 0:02:47]}  Nd7 {[%clk 0:02:42]} 11. h3 {[%clk 0:02:37]}  exd5 {[%clk 0:02:22]} 12. exd5 {[%clk 0:02:36]}  g5 {[%clk 0:02:18]} 13. Nd4 {[%clk 0:02:21]}  O-O {[%clk 0:02:10]} 14. f4 {[%clk 0:02:14]}  c5 {[%clk 0:01:33]} 15. dxc6 {[%clk 0:02:09]}  Nxc6 {[%clk 0:01:32]} 16. Nxc6 {[%clk 0:02:09]}  Bxc6 {[%clk 0:01:33]} 17. fxg5 {[%clk 0:02:08]}  hxg5 {[%clk 0:01:28]} 18. Bxg5 {[%clk 0:02:08]}  f6 {[%clk 0:01:28]} 19. Bh6 {[%clk 0:02:06]}  Ne5 {[%clk 0:01:24]} 20. Bxg7 {[%clk 0:01:53]}  Kxg7 {[%clk 0:01:23]} 21. Be4 {[%clk 0:01:52]}  Qc7 {[%clk 0:01:03]} 22. Nd5 {[%clk 0:01:38]}  Bxd5 {[%clk 0:01:00]} 23. Bxd5 {[%clk 0:01:38]}  Qc5+ {[%clk 0:01:00]} 24. Kh1 {[%clk 0:01:31]}  Ra7 {[%clk 0:00:52]} 25. Qf4 {[%clk 0:01:30]}  b5 {[%clk 0:00:35]} 26. Qg3+ {[%clk 0:01:17]}  Kh8 {[%clk 0:00:34]} 27. b3 {[%clk 0:01:11]}  bxc4 {[%clk 0:00:27]} 28. bxc4 {[%clk 0:01:10]}  Rh7 {[%clk 0:00:18]} 29. Rf5 {[%clk 0:01:07]}  Qd4 {[%clk 0:00:16]} 30. Raf1 {[%clk 0:01:05]}  Rh6 {[%clk 0:00:14]} 31. R1f4 {[%clk 0:00:52]}  Qd1+ {[%clk 0:00:14]} 32. Kh2 {[%clk 0:00:52]}  Rg6 {[%clk 0:00:13]} 33. Rh4+ {[%clk 0:00:48]}  Kg7 {[%clk 0:00:13]} 34. Qf2 {[%clk 0:00:41]}  Ng4+ {[%clk 0:00:10]} 35. hxg4 {[%clk 0:00:39]}  Re8 {[%clk 0:00:07]} 36. Rfh5 {[%clk 0:00:36]}  Re1 {[%clk 0:00:06]} 37. Rh7+ {[%clk 0:00:36]}  Kf8 {[%clk 0:00:07]} 38. Rh8+ {[%clk 0:00:35]}  Ke7 {[%clk 0:00:00]} 39. R4h7+ {[%clk 0:00:35]} 1-0


[Site "https://www.chess.com"]

[Event "Titled Tuesday Blitz August 15 Early 2023"]
[White "Begunov, Konstantin"]
[Black "Kiselev, Pavel"]
[WhiteFideId "4118510"]
[BlackFideId "4191102"]
[WhiteElo "2426"]
[BlackElo "2329"]
[Result "1/2-1/2"]
[Round "8"]
[TimeControl "180+1"]
[Date "2023.08.15"]
[WhiteClock "0:00:04"]
[BlackClock "0:00:09"]
[Board "127"]

1. d4 {[%clk 0:02:09]}  f5 {[%clk 0:02:43]} 2. g3 {[%clk 0:02:08]}  Nf6 {[%clk 0:02:43]} 3. Bg2 {[%clk 0:02:09]}  g6 {[%clk 0:02:44]} 4. Nd2 {[%clk 0:02:08]}  Bg7 {[%clk 0:02:44]} 5. e4 {[%clk 0:02:09]}  fxe4 {[%clk 0:02:44]} 6. Nxe4 {[%clk 0:02:10]}  Nxe4 {[%clk 0:02:44]} 7. Bxe4 {[%clk 0:02:09]}  d5 {[%clk 0:02:45]} 8. Bg2 {[%clk 0:02:07]}  O-O {[%clk 0:02:45]} 9. f4 {[%clk 0:02:06]}  c6 {[%clk 0:02:45]} 10. Nf3 {[%clk 0:02:04]}  Nd7 {[%clk 0:02:41]} 11. O-O {[%clk 0:02:04]}  Nf6 {[%clk 0:02:42]} 12. c3 {[%clk 0:01:57]}  Ne4 {[%clk 0:02:42]} 13. Nd2 {[%clk 0:01:52]}  Nd6 {[%clk 0:02:39]} 14. Re1 {[%clk 0:01:51]}  Bf5 {[%clk 0:02:32]} 15. Qe2 {[%clk 0:01:49]}  Re8 {[%clk 0:02:31]} 16. b3 {[%clk 0:01:43]}  Qd7 {[%clk 0:02:30]} 17. Ba3 {[%clk 0:01:40]}  Nb5 {[%clk 0:02:26]} 18. Bb2 {[%clk 0:01:36]}  Nd6 {[%clk 0:01:59]} 19. a4 {[%clk 0:01:35]}  Rac8 {[%clk 0:01:49]} 20. Ba3 {[%clk 0:01:35]}  Bg4 {[%clk 0:01:30]} 21. Qf1 {[%clk 0:01:34]}  Bf5 {[%clk 0:01:27]} 22. Rac1 {[%clk 0:01:29]}  Rcd8 {[%clk 0:01:19]} 23. h3 {[%clk 0:01:28]}  Ne4 {[%clk 0:01:19]} 24. Nxe4 {[%clk 0:01:25]}  dxe4 {[%clk 0:01:18]} 25. Kh2 {[%clk 0:00:48]}  Be6 {[%clk 0:01:14]} 26. Rb1 {[%clk 0:00:41]}  b6 {[%clk 0:00:53]} 27. Bxe4 {[%clk 0:00:41]}  c5 {[%clk 0:00:53]} 28. d5 {[%clk 0:00:36]}  Bf7 {[%clk 0:00:50]} 29. c4 {[%clk 0:00:35]}  e6 {[%clk 0:00:49]} 30. Rbd1 {[%clk 0:00:32]}  Qc8 {[%clk 0:00:36]} 31. dxe6 {[%clk 0:00:29]}  Bxe6 {[%clk 0:00:37]} 32. Qg2 {[%clk 0:00:29]}  Rxd1 {[%clk 0:00:28]} 33. Rxd1 {[%clk 0:00:28]}  Bxh3 {[%clk 0:00:27]} 34. Bd5+ {[%clk 0:00:10]}  Be6 {[%clk 0:00:27]} 35. Re1 {[%clk 0:00:11]}  Kf8 {[%clk 0:00:17]} 36. Bb2 {[%clk 0:00:07]}  Bxd5 {[%clk 0:00:13]} 37. Bxg7+ {[%clk 0:00:06]}  Kxg7 {[%clk 0:00:13]} 38. Rxe8 {[%clk 0:00:06]}  Qxe8 {[%clk 0:00:13]} 39. Qxd5 {[%clk 0:00:05]}  Qe2+ {[%clk 0:00:13]} 40. Kh3 {[%clk 0:00:06]}  Qf1+ {[%clk 0:00:12]} 41. Kg4 {[%clk 0:00:03]}  Qd1+ {[%clk 0:00:11]} 42. Kh3 {[%clk 0:00:02]}  Qxb3 {[%clk 0:00:12]} 43. Qd7+ {[%clk 0:00:02]}  Kf6 {[%clk 0:00:11]} 44. Qd6+ {[%clk 0:00:01]}  Kg7 {[%clk 0:00:09]} 45. Qe7+ {[%clk 0:00:02]}  Kh6 {[%clk 0:00:08]} 46. Qh4+ {[%clk 0:00:02]}  Kg7 {[%clk 0:00:08]} 47. Qe7+ {[%clk 0:00:03]}  Kg8 {[%clk 0:00:08]} 48. Qe8+ {[%clk 0:00:03]}  Kg7 {[%clk 0:00:09]} 49. Qe7+ {[%clk 0:00:04]} 1/2-1/2


[Site "https://www.chess.com"]

[Event "Titled Tuesday Blitz August 15 Early 2023"]
[White "Yuruultei Batbaatar"]
[Black "Kielinkei"]
[WhiteFideId "4905962"]
[WhiteElo "2326"]
[BlackElo "2424"]
[Result "1-0"]
[Round "8"]
[TimeControl "180+1"]
[Date "2023.08.15"]
[WhiteClock "0:00:03"]
[BlackClock "0:00:00"]
[Board "128"]

1. d4 {[%clk 0:03:00]}  Nf6 {[%clk 0:02:59]} 2. c4 {[%clk 0:03:01]}  e6 {[%clk 0:02:59]} 3. Nf3 {[%clk 0:03:00]}  c5 {[%clk 0:02:57]} 4. d5 {[%clk 0:02:59]}  b5 {[%clk 0:02:57]} 5. e4 {[%clk 0:02:55]}  Nxe4 {[%clk 0:02:55]} 6. Bd3 {[%clk 0:02:51]}  Nf6 {[%clk 0:02:54]} 7. O-O {[%clk 0:02:50]}  Be7 {[%clk 0:02:48]} 8. Bf4 {[%clk 0:02:43]}  d6 {[%clk 0:02:45]} 9. dxe6 {[%clk 0:02:25]}  Bxe6 {[%clk 0:02:44]} 10. cxb5 {[%clk 0:02:26]}  O-O {[%clk 0:02:44]} 11. Qc2 {[%clk 0:02:24]}  h6 {[%clk 0:02:41]} 12. Nc3 {[%clk 0:02:23]}  d5 {[%clk 0:02:40]} 13. Rad1 {[%clk 0:02:22]}  Nbd7 {[%clk 0:02:36]} 14. Bf5 {[%clk 0:02:20]}  Qb6 {[%clk 0:01:56]} 15. Bxe6 {[%clk 0:02:17]}  fxe6 {[%clk 0:01:56]} 16. Qg6 {[%clk 0:02:16]}  Kh8 {[%clk 0:01:33]} 17. Nh4 {[%clk 0:01:50]}  Nh7 {[%clk 0:01:08]} 18. Rfe1 {[%clk 0:01:04]}  Bxh4 {[%clk 0:00:59]} 19. Rxe6 {[%clk 0:01:02]}  Qd8 {[%clk 0:00:56]} 20. Nxd5 {[%clk 0:01:02]}  Ndf6 {[%clk 0:00:50]} 21. Bc7 {[%clk 0:00:23]}  Bxf2+ {[%clk 0:00:43]} 22. Kh1 {[%clk 0:00:20]}  Qc8 {[%clk 0:00:35]} 23. Re7 {[%clk 0:00:15]}  Rg8 {[%clk 0:00:34]} 24. Nxf6 {[%clk 0:00:14]}  Nxf6 {[%clk 0:00:32]} 25. h3 {[%clk 0:00:13]}  Bd4 {[%clk 0:00:20]} 26. Bf4 {[%clk 0:00:11]}  Qd8 {[%clk 0:00:09]} 27. Rde1 {[%clk 0:00:11]}  Nd5 {[%clk 0:00:04]} 28. Bxh6 {[%clk 0:00:06]}  Nxe7 {[%clk 0:00:03]} 29. Qh5 {[%clk 0:00:05]}  g6 {[%clk 0:00:01]} 30. Qh4 {[%clk 0:00:04]}  Nf5 {[%clk 0:00:00]} 31. Qe4 {[%clk 0:00:03]} 1-0


[Site "https://www.chess.com"]

[Event "Titled Tuesday Blitz August 15 Early 2023"]
[White "Todorovic, Bojan"]
[Black "Huynh, Lam Binh Nguyen"]
[WhiteFideId "917087"]
[BlackFideId "12401633"]
[WhiteElo "2416"]
[BlackElo "2310"]
[Result "1/2-1/2"]
[Round "8"]
[TimeControl "180+1"]
[Date "2023.08.15"]
[WhiteClock "0:00:17"]
[BlackClock "0:00:07"]
[Board "130"]

1. d4 {[%clk 0:02:59]}  e6 {[%clk 0:02:57]} 2. c4 {[%clk 0:02:58]}  f5 {[%clk 0:02:52]} 3. g3 {[%clk 0:02:57]}  Nf6 {[%clk 0:02:52]} 4. Bg2 {[%clk 0:02:56]}  c6 {[%clk 0:02:52]} 5. Nf3 {[%clk 0:02:53]}  d5 {[%clk 0:02:52]} 6. O-O {[%clk 0:02:51]}  Be7 {[%clk 0:02:52]} 7. Nbd2 {[%clk 0:02:49]}  O-O {[%clk 0:02:52]} 8. Ne5 {[%clk 0:02:49]}  Nbd7 {[%clk 0:02:50]} 9. Nd3 {[%clk 0:02:48]}  Qe8 {[%clk 0:02:46]} 10. b3 {[%clk 0:02:47]}  a5 {[%clk 0:02:44]} 11. a4 {[%clk 0:02:44]}  Qh5 {[%clk 0:02:36]} 12. e3 {[%clk 0:02:41]}  Qh6 {[%clk 0:02:31]} 13. Ba3 {[%clk 0:02:35]}  Bxa3 {[%clk 0:02:30]} 14. Rxa3 {[%clk 0:02:35]}  Ne4 {[%clk 0:02:31]} 15. Qc2 {[%clk 0:02:27]}  Ndf6 {[%clk 0:02:18]} 16. Nf3 {[%clk 0:02:21]}  Bd7 {[%clk 0:02:14]} 17. Nfe5 {[%clk 0:02:13]}  Be8 {[%clk 0:02:13]} 18. Raa1 {[%clk 0:02:07]}  g5 {[%clk 0:02:08]} 19. f3 {[%clk 0:02:05]}  Nd6 {[%clk 0:02:07]} 20. c5 {[%clk 0:01:59]}  Nf7 {[%clk 0:02:00]} 21. Rab1 {[%clk 0:01:57]}  Nd8 {[%clk 0:01:53]} 22. b4 {[%clk 0:01:50]}  axb4 {[%clk 0:01:53]} 23. Rxb4 {[%clk 0:01:50]}  Bg6 {[%clk 0:01:46]} 24. f4 {[%clk 0:01:47]}  Ng4 {[%clk 0:01:35]} 25. Nxg4 {[%clk 0:01:45]}  fxg4 {[%clk 0:01:36]} 26. Qd2 {[%clk 0:01:41]}  Rc8 {[%clk 0:01:21]} 27. Ne5 {[%clk 0:01:37]}  Rc7 {[%clk 0:01:18]} 28. a5 {[%clk 0:01:27]}  Bf5 {[%clk 0:01:17]} 29. a6 {[%clk 0:01:18]}  bxa6 {[%clk 0:01:15]} 30. Rb8 {[%clk 0:01:18]}  Qg7 {[%clk 0:01:06]} 31. Qa5 {[%clk 0:01:03]}  gxf4 {[%clk 0:00:57]} 32. Rxf4 {[%clk 0:00:59]}  h5 {[%clk 0:00:47]} 33. Qxa6 {[%clk 0:00:52]}  Ra7 {[%clk 0:00:45]} 34. Qb6 {[%clk 0:00:50]}  Ra1+ {[%clk 0:00:43]} 35. Bf1 {[%clk 0:00:46]}  Rb1 {[%clk 0:00:32]} 36. Rxd8 {[%clk 0:00:27]}  Rxb6 {[%clk 0:00:30]} 37. Rxf8+ {[%clk 0:00:27]}  Qxf8 {[%clk 0:00:30]} 38. cxb6 {[%clk 0:00:27]}  Qa3 {[%clk 0:00:23]} 39. Rf2 {[%clk 0:00:19]}  Qb3 {[%clk 0:00:20]} 40. Nd7 {[%clk 0:00:18]}  Kf7 {[%clk 0:00:17]} 41. Ba6 {[%clk 0:00:18]}  Ke7 {[%clk 0:00:12]} 42. Bc8 {[%clk 0:00:18]}  Qd1+ {[%clk 0:00:08]} 43. Rf1 {[%clk 0:00:17]}  Qe2 {[%clk 0:00:08]} 44. b7 {[%clk 0:00:16]}  Qxe3+ {[%clk 0:00:09]} 45. Rf2 {[%clk 0:00:17]}  Qe1+ {[%clk 0:00:09]} 46. Rf1 {[%clk 0:00:17]}  Qe3+ {[%clk 0:00:09]} 47. Rf2 {[%clk 0:00:17]}  Qc1+ {[%clk 0:00:07]} 48. Rf1 {[%clk 0:00:17]}  Qe3+ {[%clk 0:00:07]} 1/2-1/2


[Site "https://www.chess.com"]

[Event "Titled Tuesday Blitz August 15 Early 2023"]
[White "Ouellet, Maili-Jade"]
[Black "Frayna, Janelle Mae"]
[WhiteFideId "2620472"]
[BlackFideId "5212499"]
[WhiteElo "2301"]
[BlackElo "2410"]
[Result "1-0"]
[Round "8"]
[TimeControl "180+1"]
[Date "2023.08.15"]
[WhiteClock "0:00:12"]
[BlackClock "0:00:11"]
[Board "131"]

1. e4 {[%clk 0:03:00]}  Nf6 {[%clk 0:02:59]} 2. e5 {[%clk 0:03:00]}  Nd5 {[%clk 0:02:59]} 3. d4 {[%clk 0:03:00]}  d6 {[%clk 0:03:00]} 4. Nf3 {[%clk 0:02:56]}  g6 {[%clk 0:02:59]} 5. Be2 {[%clk 0:02:54]}  Bg7 {[%clk 0:02:59]} 6. O-O {[%clk 0:02:54]}  O-O {[%clk 0:03:00]} 7. Nbd2 {[%clk 0:02:50]}  Nc6 {[%clk 0:02:56]} 8. Re1 {[%clk 0:02:48]}  dxe5 {[%clk 0:02:54]} 9. dxe5 {[%clk 0:02:43]}  Nxe5 {[%clk 0:02:53]} 10. Nxe5 {[%clk 0:02:37]}  Bxe5 {[%clk 0:02:54]} 11. Nc4 {[%clk 0:02:34]}  Bg7 {[%clk 0:02:53]} 12. Bf3 {[%clk 0:02:31]}  c6 {[%clk 0:02:52]} 13. c3 {[%clk 0:02:29]}  Be6 {[%clk 0:02:43]} 14. Qe2 {[%clk 0:02:17]}  Nb6 {[%clk 0:02:33]} 15. Ne5 {[%clk 0:02:14]}  Bd5 {[%clk 0:02:32]} 16. Bf4 {[%clk 0:02:04]}  Bxf3 {[%clk 0:02:31]} 17. Qxf3 {[%clk 0:02:01]}  Qd5 {[%clk 0:02:27]} 18. Qg3 {[%clk 0:01:57]}  Rad8 {[%clk 0:02:26]} 19. h4 {[%clk 0:01:54]}  f6 {[%clk 0:02:18]} 20. Ng4 {[%clk 0:01:48]}  e5 {[%clk 0:02:18]} 21. Nh6+ {[%clk 0:01:42]}  Kh8 {[%clk 0:02:17]} 22. Be3 {[%clk 0:01:40]}  f5 {[%clk 0:02:14]} 23. Bg5 {[%clk 0:01:40]}  Rd7 {[%clk 0:02:09]} 24. Kh2 {[%clk 0:01:26]}  f4 {[%clk 0:01:51]} 25. Qh3 {[%clk 0:01:13]}  e4 {[%clk 0:01:49]} 26. Rad1 {[%clk 0:01:10]}  Qxd1 {[%clk 0:01:46]} 27. Rxd1 {[%clk 0:01:11]}  Rxd1 {[%clk 0:01:46]} 28. Qe6 {[%clk 0:01:07]}  Rd7 {[%clk 0:01:31]} 29. Qxe4 {[%clk 0:01:06]}  Nd5 {[%clk 0:01:24]} 30. c4 {[%clk 0:01:00]}  Nf6 {[%clk 0:01:21]} 31. Qe6 {[%clk 0:00:57]}  Rc7 {[%clk 0:01:08]} 32. Bxf4 {[%clk 0:00:54]}  Rcc8 {[%clk 0:00:55]} 33. Nf7+ {[%clk 0:00:45]}  Rxf7 {[%clk 0:00:52]} 34. Qxf7 {[%clk 0:00:46]}  Rf8 {[%clk 0:00:53]} 35. Qxb7 {[%clk 0:00:38]}  Ng4+ {[%clk 0:00:45]} 36. Kg3 {[%clk 0:00:37]}  Nf6 {[%clk 0:00:46]} 37. Kh3 {[%clk 0:00:30]}  Ne4 {[%clk 0:00:41]} 38. Be3 {[%clk 0:00:27]}  h5 {[%clk 0:00:38]} 39. Qxc6 {[%clk 0:00:24]}  Nf6 {[%clk 0:00:37]} 40. f3 {[%clk 0:00:22]}  Kh7 {[%clk 0:00:35]} 41. Bxa7 {[%clk 0:00:20]}  Rd8 {[%clk 0:00:32]} 42. b4 {[%clk 0:00:16]}  Rd1 {[%clk 0:00:31]} 43. Kg3 {[%clk 0:00:15]}  Rd3 {[%clk 0:00:28]} 44. b5 {[%clk 0:00:14]}  Ne8 {[%clk 0:00:22]} 45. Bb8 {[%clk 0:00:14]}  Rd8 {[%clk 0:00:17]} 46. Bf4 {[%clk 0:00:13]}  Bf6 {[%clk 0:00:11]} 47. b6 {[%clk 0:00:12]} 1-0


[Site "https://www.chess.com"]

[Event "Titled Tuesday Blitz August 15 Early 2023"]
[White "le-castor-faineant"]
[Black "Fuzesabonyilaci"]
[WhiteElo "2199"]
[BlackElo "2390"]
[Result "0-1"]
[Round "8"]
[TimeControl "180+1"]
[Date "2023.08.15"]
[WhiteClock "0:00:17"]
[BlackClock "0:00:09"]
[Board "137"]

1. e4 {[%clk 0:02:57]}  e5 {[%clk 0:02:54]} 2. Nf3 {[%clk 0:02:57]}  Nc6 {[%clk 0:02:51]} 3. Bb5 {[%clk 0:02:58]}  a6 {[%clk 0:02:48]} 4. Ba4 {[%clk 0:02:58]}  Bc5 {[%clk 0:02:45]} 5. Qe2 {[%clk 0:02:50]}  Nge7 {[%clk 0:02:43]} 6. Nc3 {[%clk 0:02:38]}  O-O {[%clk 0:02:42]} 7. O-O {[%clk 0:02:38]}  d6 {[%clk 0:02:39]} 8. h3 {[%clk 0:02:38]}  Kh8 {[%clk 0:02:37]} 9. d3 {[%clk 0:02:36]}  Ng6 {[%clk 0:02:34]} 10. Be3 {[%clk 0:02:29]}  Bxe3 {[%clk 0:02:28]} 11. fxe3 {[%clk 0:02:25]}  f5 {[%clk 0:02:28]} 12. exf5 {[%clk 0:02:23]}  Bxf5 {[%clk 0:02:26]} 13. Bxc6 {[%clk 0:02:21]}  bxc6 {[%clk 0:02:25]} 14. e4 {[%clk 0:02:14]}  Nf4 {[%clk 0:02:21]} 15. Qd2 {[%clk 0:02:13]}  Be6 {[%clk 0:01:51]} 16. Ne2 {[%clk 0:02:09]}  Nxh3+ {[%clk 0:01:18]} 17. gxh3 {[%clk 0:02:06]}  Bxh3 {[%clk 0:01:18]} 18. Rf2 {[%clk 0:01:51]}  Qd7 {[%clk 0:01:16]} 19. Qg5 {[%clk 0:01:46]}  Rf6 {[%clk 0:01:14]} 20. Kh1 {[%clk 0:01:26]}  Raf8 {[%clk 0:01:11]} 21. Neg1 {[%clk 0:01:21]}  Rg6 {[%clk 0:00:36]} 22. Qd2 {[%clk 0:01:18]}  Qg4 {[%clk 0:00:21]} 23. Rh2 {[%clk 0:01:18]}  Rxf3 {[%clk 0:00:19]} 24. Nxh3 {[%clk 0:01:02]}  Rxh3 {[%clk 0:00:18]} 25. Rf1 {[%clk 0:00:57]}  Rf3 {[%clk 0:00:14]} 26. Qd1 {[%clk 0:00:28]}  Rxf1+ {[%clk 0:00:12]} 27. Qxf1 {[%clk 0:00:29]}  Rf6 {[%clk 0:00:11]} 28. Qg1 {[%clk 0:00:21]}  Qf3+ {[%clk 0:00:10]} 29. Qg2 {[%clk 0:00:17]}  Qd1+ {[%clk 0:00:09]} 0-1


[Site "https://www.chess.com"]

[Event "Titled Tuesday Blitz August 15 Early 2023"]
[White "Ivanov, Alexey"]
[Black "Seifert, Henryk"]
[WhiteFideId "4167635"]
[BlackFideId "1100963"]
[WhiteElo "2575"]
[BlackElo "2098"]
[Result "1-0"]
[Round "8"]
[TimeControl "180+1"]
[Date "2023.08.15"]
[WhiteClock "0:01:23"]
[BlackClock "0:00:00"]
[Board "138"]

1. Nf3 {[%clk 0:02:54]}  d5 {[%clk 0:02:59]} 2. c4 {[%clk 0:02:55]}  c6 {[%clk 0:02:58]} 3. e3 {[%clk 0:02:55]}  Nf6 {[%clk 0:02:57]} 4. Qc2 {[%clk 0:02:55]}  g6 {[%clk 0:02:53]} 5. b3 {[%clk 0:02:55]}  Bg7 {[%clk 0:02:52]} 6. Bb2 {[%clk 0:02:55]}  O-O {[%clk 0:02:52]} 7. h3 {[%clk 0:02:54]}  Bf5 {[%clk 0:02:48]} 8. d3 {[%clk 0:02:55]}  Nbd7 {[%clk 0:02:36]} 9. Nd4 {[%clk 0:02:45]}  e5 {[%clk 0:02:19]} 10. Nxf5 {[%clk 0:02:44]}  gxf5 {[%clk 0:02:20]} 11. Be2 {[%clk 0:02:41]}  Re8 {[%clk 0:02:14]} 12. O-O {[%clk 0:02:37]}  a5 {[%clk 0:02:05]} 13. a3 {[%clk 0:02:36]}  Qb6 {[%clk 0:01:49]} 14. Nd2 {[%clk 0:02:35]}  e4 {[%clk 0:01:19]} 15. Rac1 {[%clk 0:02:23]}  Ne5 {[%clk 0:01:00]} 16. Bxe5 {[%clk 0:02:15]}  Rxe5 {[%clk 0:00:59]} 17. cxd5 {[%clk 0:02:14]}  cxd5 {[%clk 0:00:39]} 18. d4 {[%clk 0:02:01]}  Ree8 {[%clk 0:00:39]} 19. a4 {[%clk 0:01:59]}  Bf8 {[%clk 0:00:35]} 20. Bb5 {[%clk 0:01:57]}  Red8 {[%clk 0:00:34]} 21. Qc7 {[%clk 0:01:54]}  Qxc7 {[%clk 0:00:28]} 22. Rxc7 {[%clk 0:01:54]}  Rab8 {[%clk 0:00:27]} 23. g3 {[%clk 0:01:49]}  Bd6 {[%clk 0:00:25]} 24. Rc2 {[%clk 0:01:49]}  h5 {[%clk 0:00:24]} 25. h4 {[%clk 0:01:38]}  Kg7 {[%clk 0:00:23]} 26. Nb1 {[%clk 0:01:27]}  Bb4 {[%clk 0:00:09]} 27. Rfc1 {[%clk 0:01:27]}  Bd6 {[%clk 0:00:03]} 28. Kf1 {[%clk 0:01:27]}  Kg6 {[%clk 0:00:03]} 29. Nc3 {[%clk 0:01:25]}  b6 {[%clk 0:00:02]} 30. Be2 {[%clk 0:01:24]}  Ba3 {[%clk 0:00:00]} 31. Ra1 {[%clk 0:01:23]} 1-0


[Site "https://www.chess.com"]

[Event "Titled Tuesday Blitz August 15 Early 2023"]
[White "Shapiro, Daniel"]
[Black "Gurevich, Dmitry"]
[WhiteFideId "2001780"]
[BlackFideId "2000407"]
[WhiteElo "2297"]
[BlackElo "2464"]
[Result "0-1"]
[Round "8"]
[TimeControl "180+1"]
[Date "2023.08.15"]
[WhiteClock "0:00:24"]
[BlackClock "0:00:27"]
[Board "141"]

1. d4 {[%clk 0:03:00]}  Nf6 {[%clk 0:02:57]} 2. c4 {[%clk 0:02:59]}  a6 {[%clk 0:02:58]} 3. a4 {[%clk 0:02:46]}  e6 {[%clk 0:02:54]} 4. Nc3 {[%clk 0:02:37]}  d5 {[%clk 0:02:54]} 5. cxd5 {[%clk 0:02:30]}  exd5 {[%clk 0:02:53]} 6. Bf4 {[%clk 0:02:29]}  Bd6 {[%clk 0:02:52]} 7. Bg3 {[%clk 0:02:28]}  O-O {[%clk 0:02:50]} 8. e3 {[%clk 0:02:28]}  Nc6 {[%clk 0:02:48]} 9. Bd3 {[%clk 0:02:27]}  Nb4 {[%clk 0:02:47]} 10. Be2 {[%clk 0:02:20]}  Bf5 {[%clk 0:02:45]} 11. Rc1 {[%clk 0:02:19]}  Rc8 {[%clk 0:02:41]} 12. Nf3 {[%clk 0:02:19]}  h6 {[%clk 0:02:34]} 13. O-O {[%clk 0:02:18]}  c6 {[%clk 0:02:34]} 14. Ne5 {[%clk 0:02:17]}  a5 {[%clk 0:02:31]} 15. Nd3 {[%clk 0:02:17]}  Bxg3 {[%clk 0:02:24]} 16. hxg3 {[%clk 0:02:13]}  Re8 {[%clk 0:02:17]} 17. Nxb4 {[%clk 0:01:58]}  axb4 {[%clk 0:02:16]} 18. Na2 {[%clk 0:01:59]}  Qa5 {[%clk 0:02:05]} 19. Qb3 {[%clk 0:01:49]}  Ra8 {[%clk 0:02:02]} 20. Qxb4 {[%clk 0:01:50]}  Qxb4 {[%clk 0:01:59]} 21. Nxb4 {[%clk 0:01:50]}  Rxa4 {[%clk 0:01:58]} 22. Nd3 {[%clk 0:01:51]}  Rea8 {[%clk 0:01:40]} 23. Nc5 {[%clk 0:01:35]}  Rb4 {[%clk 0:01:39]} 24. b3 {[%clk 0:01:33]}  Ne4 {[%clk 0:01:38]} 25. g4 {[%clk 0:01:23]}  Nxc5 {[%clk 0:01:28]} 26. Rxc5 {[%clk 0:01:16]}  Be4 {[%clk 0:01:27]} 27. f3 {[%clk 0:01:09]}  Bg6 {[%clk 0:01:25]} 28. Bd1 {[%clk 0:01:09]}  Bd3 {[%clk 0:01:18]} 29. Re1 {[%clk 0:01:06]}  Ra1 {[%clk 0:01:14]} 30. Rc3 {[%clk 0:01:05]}  Be2 {[%clk 0:01:07]} 31. Rxe2 {[%clk 0:01:01]}  Rxd1+ {[%clk 0:01:07]} 32. Kf2 {[%clk 0:01:02]}  Rb1 {[%clk 0:01:08]} 33. e4 {[%clk 0:01:03]}  Rxd4 {[%clk 0:01:00]} 34. exd5 {[%clk 0:01:00]}  Rxd5 {[%clk 0:00:58]} 35. Re8+ {[%clk 0:00:59]}  Kh7 {[%clk 0:00:58]} 36. Re7 {[%clk 0:01:00]}  Rb5 {[%clk 0:00:57]} 37. Rxf7 {[%clk 0:00:59]}  R1xb3 {[%clk 0:00:57]} 38. Rc4 {[%clk 0:00:57]}  R3b4 {[%clk 0:00:54]} 39. Rc3 {[%clk 0:00:54]}  Kg6 {[%clk 0:00:53]} 40. Rd7 {[%clk 0:00:53]}  Rb2+ {[%clk 0:00:50]} 41. Kg3 {[%clk 0:00:52]}  Re2 {[%clk 0:00:48]} 42. f4 {[%clk 0:00:45]}  Rbb2 {[%clk 0:00:47]} 43. f5+ {[%clk 0:00:45]}  Kf6 {[%clk 0:00:42]} 44. Rcd3 {[%clk 0:00:39]}  Rxg2+ {[%clk 0:00:41]} 45. Kf4 {[%clk 0:00:39]}  Rb4+ {[%clk 0:00:35]} 46. Kf3 {[%clk 0:00:34]}  Rbxg4 {[%clk 0:00:32]} 47. Rxb7 {[%clk 0:00:30]}  R2g3+ {[%clk 0:00:29]} 48. Ke2 {[%clk 0:00:28]}  Rxd3 {[%clk 0:00:28]} 49. Kxd3 {[%clk 0:00:29]}  Kxf5 {[%clk 0:00:28]} 50. Rc7 {[%clk 0:00:28]}  Rg6 {[%clk 0:00:27]} 51. Rf7+ {[%clk 0:00:24]}  Kg4 {[%clk 0:00:27]} 0-1


[Site "https://www.chess.com"]